fUSD/lending_fUSD_20250617
["ID","MTS","AMOUNT","RATE_DAILY","PERIOD"]
[366313756,1750183848080,-490.0,0.00016438,2]
[366313758,1750183848090,-456.6460273,0.00016438,2]
[366313760,1750183848100,-1289.38,0.00016438,2]
[366313762,1750183848110,-522.47,0.00016438,2]
[366313764,1750183848121,-490.0,0.00016438,2]
[366313766,1750183848132,-490.0,0.00016438,2]
[366313767,1750183848142,-490.0,0.00016438,2]
[366313768,1750183848152,-490.0,0.00016438,2]
[366313769,1750183848162,-490.0,0.00016438,2]
[366313770,1750183848173,-490.0,0.00016438,2]
[366313771,1750183848183,-270.0974145,0.00016438,2]
[366313772,1750183848193,-722.69,0.00016438,2]
[366313773,1750183848204,-1214.34,0.00016438,2]
[366313774,1750183848214,-490.0,0.00016438,2]
[366313775,1750183848225,-490.0,0.00016438,2]
[366313776,1750183848235,-490.0,0.00016438,2]
[366313777,1750183848245,-485.11322886,0.00016438,2]
[366313778,1750183848255,-490.0,0.00016438,2]
[366313779,1750183848265,-490.0,0.00016438,2]
[366313781,1750183848275,-490.0,0.00016438,2]
[366313783,1750183848285,-490.0,0.00016438,2]
[366313785,1750183848295,-490.0,0.00016438,2]
[366313787,1750183848305,-490.0,0.00016438,2]
[366313789,1750183848316,-490.0,0.00016438,2]
[366313791,1750183848326,-513.74392844,0.00016438,2]
[366313793,1750183848337,-490.0,0.00016438,2]
[366313795,1750183848348,-490.0,0.00016438,2]
[366313797,1750183848358,-1030.33,0.00016438,2]
[366313799,1750183848368,-980.95,0.00016438,2]
[366313801,1750183848380,-490.0,0.00016438,2]
[366313803,1750183848390,-490.0,0.00016438,2]
[366313805,1750183848402,-490.0,0.00016438,2]
[366313807,1750183848412,-490.0,0.00016438,2]
[366313809,1750183848422,-490.0,0.00016438,2]
[366313811,1750183848432,-490.0,0.00016438,2]
[366313813,1750183848443,-490.0,0.00016438,2]
[366313816,1750183848453,-490.0,0.00016438,2]
[366313818,1750183848463,-490.0,0.00016438,2]
[366313820,1750183848474,-427.87760257,0.00016438,2]
[366313822,1750183848485,-490.0,0.00016438,2]
[366313824,1750183848496,-490.0,0.00016438,2]
[366313826,1750183848507,-490.0,0.00016438,2]
[366313828,1750183848518,-490.0,0.00016438,2]
[366313830,1750183848529,-490.0,0.00016438,2]
[366313832,1750183848540,-490.0,0.00016438,2]
[366313834,1750183848550,-490.0,0.00016438,2]
[366313837,1750183848561,-490.0,0.00016438,2]
[366313839,1750183848572,-490.0,0.00016438,2]
[366313841,1750183848582,-612.33930821,0.00016438,2]
[366313843,1750183848593,-490.0,0.00016438,2]
[366313845,1750183848604,-490.0,0.00016438,2]
[366313847,1750183848615,-490.0,0.00016438,2]
[366313849,1750183848626,-490.0,0.00016438,2]
[366313851,1750183848637,-490.0,0.00016438,2]
[366313853,1750183848648,-490.0,0.00016438,2]
[366313856,1750183848661,-707.26,0.00016438,2]
[366313858,1750183848671,-490.0,0.00016438,2]
[366313860,1750183848682,-302.49414619,0.00016438,2]
[366313862,1750183848693,-490.0,0.00016438,2]
[366313864,1750183848704,-437.39450507,0.00016438,2]
[366313866,1750183848714,-490.0,0.00016438,2]
[366313868,1750183848724,-490.0,0.00016438,2]
[366313870,1750183848734,-490.0,0.00016438,2]
[366313872,1750183848744,-692.66,0.00016438,2]
[366313874,1750183848755,-490.0,0.00016438,2]
[366313876,1750183848766,-490.0,0.00016438,2]
[366313878,1750183848776,-640.71,0.00016438,2]
[366313880,1750183848787,-1076.64,0.00016438,2]
[366313882,1750183848798,-490.0,0.00016438,2]
[366313884,1750183848809,-490.0,0.00016438,2]
[366313886,1750183848819,-504.03,0.00016438,2]
[366313888,1750183848830,-490.0,0.00016438,2]
[366313890,1750183848840,-490.0,0.00016438,2]
[366313893,1750183848851,-490.0,0.00016438,2]
[366313895,1750183848861,-490.0,0.00016438,2]
[366313897,1750183848871,-1845.63,0.00016438,2]
[366313899,1750183848882,-490.0,0.00016438,2]
[366313901,1750183848893,-490.0,0.00016438,2]
[366313903,1750183848903,-490.0,0.00016438,2]
[366313905,1750183848914,-490.0,0.00016438,2]
[366313907,1750183848925,-599.52830452,0.00016438,2]
[366313909,1750183848936,-490.0,0.00016438,2]
[366313911,1750183848947,-490.0,0.00016438,2]
[366313913,1750183848958,-490.0,0.00016438,2]
[366313915,1750183848969,-322.18163224,0.00016438,2]
[366313917,1750183848980,-877.41,0.00016438,2]
[366313920,1750183848992,-490.0,0.00016438,2]
[366313922,1750183849003,-490.0,0.00016438,2]
[366313924,1750183849014,-490.0,0.00016438,2]
[366313926,1750183849025,-490.0,0.00016438,2]
[366313928,1750183849037,-490.0,0.00016438,2]
[366313930,1750183849050,-2141.88,0.00016438,2]
[366313932,1750183849061,-490.0,0.00016438,2]
[366313934,1750183849073,-436.092218,0.00016438,2]
[366313936,1750183849085,-601.9,0.00016438,2]
[366313939,1750183849097,-490.0,0.00016438,2]
[366313941,1750183849110,-490.0,0.00016438,2]
[366313943,1750183849122,-490.0,0.00016438,2]
[366313945,1750183849134,-490.0,0.00016438,2]
[366313947,1750183849144,-490.0,0.00016438,2]
[366313950,1750183849158,-791.91,0.00016438,2]
[366313952,1750183849169,-675.54,0.00016438,2]
[366313954,1750183849180,-161.11200803,0.00016438,2]
[366313956,1750183849191,-5661.33,0.00016438,2]
[366313958,1750183849202,-490.0,0.00016438,2]
[366313960,1750183849213,-506.56,0.00016438,2]
[366313962,1750183849224,-765.07,0.00016438,2]
[366313964,1750183849236,-1172.77,0.00016438,2]
[366313966,1750183849246,-490.0,0.00016438,2]
[366313968,1750183849257,-1398.97,0.00016438,2]
[366313971,1750183849268,-490.0,0.00016438,2]
[366313973,1750183849278,-490.29,0.00016438,2]
[366313975,1750183849288,-298.03286065,0.00016438,2]
[366313977,1750183849299,-490.0,0.00016438,2]
[366313979,1750183849310,-1792.44,0.00016438,2]
[366313981,1750183849322,-490.0,0.00016438,2]
[366313983,1750183849333,-490.0,0.00016438,2]
[366313985,1750183849346,-490.0,0.00016438,2]
[366313987,1750183849357,-3640.22,0.00016438,2]
[366313989,1750183849367,-490.0,0.00016438,2]
[366313991,1750183849378,-490.0,0.00016438,2]
[366313993,1750183849388,-572.15,0.00016438,2]
[366313995,1750183849399,-2136.77,0.00016438,2]
[366313998,1750183849412,-500.0,0.00016438,2]
[366314000,1750183849424,-500.0,0.00016438,2]
[366314002,1750183849435,-500.0,0.00016438,2]
[366314004,1750183849445,-500.0,0.00016438,2]
[366314006,1750183849454,-500.0,0.00016438,2]
[366314008,1750183849465,-500.0,0.00016438,2]
[366314010,1750183849475,-500.0,0.00016438,2]
[366314012,1750183849485,-504.63479008,0.00016438,2]
[366314014,1750183849496,-403.84945272,0.00016438,2]
[366314016,1750183849506,-490.0,0.00016438,2]
[366314018,1750183849517,-490.0,0.00016438,2]
[366314020,1750183849527,-431.37542806,0.00016438,2]
[366314022,1750183849538,-1358.96,0.00016438,2]
[366314024,1750183849549,-490.0,0.00016438,2]
[366314026,1750183849559,-3336.52,0.00016438,2]
[366314028,1750183849569,-490.0,0.00016438,2]
[366314031,1750183849579,-1049.06,0.00016438,2]
[366314033,1750183849590,-490.0,0.00016438,2]
[366314035,1750183849600,-490.0,0.00016438,2]
[366314037,1750183849611,-1104.15,0.00016438,2]
[366314039,1750183849621,-490.0,0.00016438,2]
[366314041,1750183849631,-1230.8,0.00016438,2]
[366314043,1750183849641,-384.2551441,0.00016438,2]
[366314045,1750183849651,-490.0,0.00016438,2]
[366314047,1750183849663,-490.0,0.00016438,2]
[366314049,1750183849673,-1061.66,0.00016438,2]
[366314051,1750183849683,-963.8,0.00016438,2]
[366314054,1750183849693,-601.26250277,0.00016438,2]
[366314056,1750183849704,-1000.0,0.00016438,2]
[366314058,1750183849714,-434.71693575,0.00016438,2]
[366314060,1750183849724,-784.93,0.00016438,2]
[366314062,1750183849734,-490.0,0.00016438,2]
[366314064,1750183849745,-490.0,0.00016438,2]
[366314066,1750183849755,-2269.42,0.00016438,2]
[366314068,1750183849765,-820.28,0.00016438,2]
[366314070,1750183849775,-490.0,0.00016438,2]
[366314072,1750183849785,-490.0,0.00016438,2]
[366314074,1750183849795,-1183.56,0.00016438,2]
[366314076,1750183849805,-582.20403457,0.00016438,2]
[366314078,1750183849814,-490.0,0.00016438,2]
[366314080,1750183849824,-490.0,0.00016438,2]
[366314082,1750183849834,-1035.36,0.00016438,2]
[366314084,1750183849845,-490.0,0.00016438,2]
[366314086,1750183849855,-490.0,0.00016438,2]
[366314088,1750183849865,-490.0,0.00016438,2]
[366314090,1750183849876,-854.27,0.00016438,2]
[366314093,1750183849886,-616.87,0.00016438,2]
[366314095,1750183849896,-563.40162426,0.00016438,2]
[366314097,1750183849907,-490.0,0.00016438,2]
[366314099,1750183849917,-490.0,0.00016438,2]
[366314101,1750183849927,-490.0,0.00016438,2]
[366314103,1750183849938,-490.0,0.00016438,2]
[366314105,1750183849948,-1768.16,0.00016438,2]
[366314107,1750183849958,-645.01,0.00016438,2]
[366314109,1750183849968,-490.0,0.00016438,2]
[366314111,1750183849978,-586.02,0.00016438,2]
[366314113,1750183849990,-490.0,0.00016438,2]
[366314115,1750183849999,-500.0,0.00016438,2]
[366314117,1750183850010,-1096.17,0.00016438,2]
[366314120,1750183850020,-500.0,0.00016438,2]
[366314122,1750183850030,-500.0,0.00016438,2]
[366314124,1750183850043,-500.0,0.00016438,2]
[366314126,1750183850054,-490.0,0.00016438,2]
[366314128,1750183850064,-490.0,0.00016438,2]
[366314130,1750183850075,-3882.26,0.00016438,2]
[366314160,1750183850372,-490.0,0.00016438,2]
[366314163,1750183850393,-303.37834833,0.00016438,2]
[366314165,1750183850403,-490.0,0.00016438,2]
[366314167,1750183850413,-849.89,0.00016438,2]
[366314169,1750183850422,-1119.42,0.00016438,2]
[366314171,1750183850431,-3605.95,0.00016438,2]
[366314173,1750183850441,-500.0,0.00016438,2]
[366314175,1750183850450,-490.0,0.00016438,2]
[366314177,1750183850460,-490.0,0.00016438,2]
[366314179,1750183850469,-19125.22,0.00016438,2]
[366314181,1750183850478,-490.0,0.00016438,2]
[366314183,1750183850488,-486.72004631,0.00016438,2]
[366314185,1750183850498,-490.0,0.00016438,2]
[366314187,1750183850507,-490.0,0.00016438,2]
[366314189,1750183850517,-490.0,0.00016438,2]
[366314191,1750183850526,-490.0,0.00016438,2]
[366314193,1750183850536,-490.0,0.00016438,2]
[366314195,1750183850545,-490.0,0.00016438,2]
[366314197,1750183850555,-716.03,0.00016438,2]
[366314199,1750183850564,-1375.74,0.00016438,2]
[366314201,1750183850574,-490.0,0.00016438,2]
[366314203,1750183850584,-490.0,0.00016438,2]
[366314205,1750183850594,-490.43524426,0.00016438,2]
[366314207,1750183850604,-14301.04,0.00016438,2]
[366314209,1750183850614,-601.87,0.00016438,2]
[366314211,1750183850624,-2389.0,0.00016438,2]
[366314213,1750183850634,-490.0,0.00016438,2]
[366314215,1750183850643,-490.0,0.00016438,2]
[366314217,1750183850653,-490.0,0.00016438,2]
[366314219,1750183850663,-490.0,0.00016438,2]
[366314221,1750183850672,-739.3,0.00016438,2]
[366314223,1750183850682,-490.0,0.00016438,2]
[366314225,1750183850692,-490.0,0.00016438,2]
[366314227,1750183850702,-490.0,0.00016438,2]
[366314228,1750183850712,-490.0,0.00016438,2]
[366314229,1750183850721,-559.51,0.00016438,2]
[366314230,1750183850731,-490.0,0.00016438,2]
[366314232,1750183850740,-490.0,0.00016438,2]
[366314234,1750183850750,-490.0,0.00016438,2]
[366314236,1750183850760,-490.0,0.00016438,2]
[366314238,1750183850770,-1468.72,0.00016438,2]
[366314240,1750183850779,-2169.44,0.00016438,2]
[366314242,1750183850789,-639.97,0.00016438,2]
[366314244,1750183850799,-1621.1,0.00016438,2]
[366314246,1750183850808,-490.0,0.00016438,2]
[366314248,1750183850819,-1438.46,0.00016438,2]
[366314250,1750183850828,-490.0,0.00016438,2]
[366314252,1750183850837,-3623.68,0.00016438,2]
[366314254,1750183850847,-490.0,0.00016438,2]
[366314256,1750183850858,-490.0,0.00016438,2]
[366314258,1750183850868,-490.0,0.00016438,2]
[366314260,1750183850877,-490.0,0.00016438,2]
[366314262,1750183850887,-490.0,0.00016438,2]
[366314264,1750183850896,-490.0,0.00016438,2]
[366314266,1750183850907,-1832.38,0.00016438,2]
[366314268,1750183850916,-490.0,0.00016438,2]
[366314270,1750183850926,-1020.22,0.00016438,2]
[366314272,1750183850936,-490.0,0.00016438,2]
[366314274,1750183850946,-490.0,0.00016438,2]
[366314276,1750183850956,-3300.42,0.00016438,2]
[366314278,1750183850966,-490.0,0.00016438,2]
[366314280,1750183850975,-490.0,0.00016438,2]
[366314282,1750183850985,-490.0,0.00016438,2]
[366314284,1750183850994,-490.0,0.00016438,2]
[366314286,1750183851004,-490.0,0.00016438,2]
[366314288,1750183851014,-1257.34,0.00016438,2]
[366314290,1750183851023,-490.0,0.00016438,2]
[366314292,1750183851033,-490.0,0.00016438,2]
[366314294,1750183851047,-490.0,0.00016438,2]
[366314296,1750183851056,-481.97038062,0.00016438,2]
[366314298,1750183851065,-251.89374371,0.00016438,2]
[366314300,1750183851075,-1152.21,0.00016438,2]
[366314302,1750183851085,-490.0,0.00016438,2]
[366314304,1750183851095,-490.0,0.00016438,2]
[366314306,1750183851105,-1050.86,0.00016438,2]
[366314308,1750183851116,-8741.13,0.00016438,2]
[366314310,1750183851125,-490.0,0.00016438,2]
[366314312,1750183851135,-490.0,0.00016438,2]
[366314315,1750183851145,-1725.21,0.00016438,2]
[366314317,1750183851155,-490.0,0.00016438,2]
[366314319,1750183851166,-490.0,0.00016438,2]
[366314321,1750183851176,-2107.96,0.00016438,2]
[366314323,1750183851186,-2318.97,0.00016438,2]
[366314325,1750183851196,-550.0,0.00016438,2]
[366314327,1750183851205,-490.0,0.00016438,2]
[366314329,1750183851214,-6105.06,0.00016438,2]
[366314331,1750183851224,-1843.2,0.00016438,2]
[366314333,1750183851234,-490.0,0.00016438,2]
[366314335,1750183851244,-658.85,0.00016438,2]
[366314337,1750183851254,-490.0,0.00016438,2]
[366314339,1750183851264,-490.0,0.00016438,2]
[366314341,1750183851274,-490.0,0.00016438,2]
[366314343,1750183851284,-490.0,0.00016438,2]
[366314345,1750183851294,-490.0,0.00016438,2]
[366314347,1750183851305,-490.0,0.00016438,2]
[366314349,1750183851315,-1135.97,0.00016438,2]
[366314351,1750183851327,-490.0,0.00016438,2]
[366314353,1750183851337,-490.0,0.00016438,2]
[366314356,1750183851348,-1525.02,0.00016438,2]
[366314358,1750183851358,-490.0,0.00016438,2]
[366314360,1750183851368,-3186.592471,0.00016438,2]
[366314362,1750183851378,-3186.592471,0.00016438,2]
[366314364,1750183851388,-552.18,0.00016438,2]
[366314366,1750183851397,-2415.92,0.00016438,2]
[366314368,1750183851409,-490.0,0.00016438,2]
[366314370,1750183851419,-490.0,0.00016438,2]
[366314372,1750183851428,-992.79,0.00016438,2]
[366314374,1750183851439,-3186.592471,0.00016438,2]
[366314376,1750183851448,-690.91,0.00016438,2]
[366314378,1750183851458,-490.0,0.00016438,2]
[366314380,1750183851468,-3186.592471,0.00016438,2]
[366314382,1750183851478,-490.0,0.00016438,2]
[366314384,1750183851487,-3186.592471,0.00016438,2]
[366314386,1750183851496,-501.46,0.00016438,2]
[366314387,1750183851506,-3186.592471,0.00016438,2]
[366314390,1750183851516,-490.0,0.00016438,2]
[366314392,1750183851526,-1315.93,0.00016438,2]
[366314394,1750183851535,-490.0,0.00016438,2]
[366314395,1750183851545,-491.11056352,0.00016438,2]
[366314397,1750183851555,-490.0,0.00016438,2]
[366314399,1750183851566,-23662.94,0.00016438,2]
[366314401,1750183851576,-3186.592471,0.00016438,2]
[366314403,1750183851585,-1722.06,0.00016438,2]
[366314405,1750183851594,-3186.592471,0.00016438,2]
[366314407,1750183851604,-3186.592471,0.00016438,2]
[366314409,1750183851613,-3186.592471,0.00016438,2]
[366314411,1750183851622,-3186.592471,0.00016438,2]
[366314413,1750183851632,-3186.592471,0.00016438,2]
[366314415,1750183851641,-619.97,0.00016438,2]
[366314417,1750183851651,-635.45,0.00016438,2]
[366314419,1750183851665,-490.0,0.00016438,2]
[366314421,1750183851674,-490.0,0.00016438,2]
[366314423,1750183851683,-1415.14,0.00016438,2]
[366314425,1750183851693,-490.0,0.00016438,2]
[366314427,1750183851703,-490.0,0.00016438,2]
[366314429,1750183851712,-587.31413246,0.00016438,2]
[366314431,1750183851722,-3443.01,0.00016438,2]
[366314433,1750183851731,-1466.06,0.00016438,2]
[366314435,1750183851741,-490.0,0.00016438,2]
[366314437,1750183851751,-280.628356,0.00016438,2]
[366314439,1750183851760,-280.628356,0.00016438,2]
[366314441,1750183851770,-780.96,0.00016438,2]
[366314443,1750183851779,-3599.9,0.00016438,2]
[366314445,1750183851789,-280.628356,0.00016438,2]
[366314447,1750183851799,-280.628356,0.00016438,2]
[366314449,1750183851809,-280.628356,0.00016438,2]
[366314451,1750183851820,-581.5,0.00016438,2]
[366314453,1750183851831,-1867.84,0.00016438,2]
[366314455,1750183851842,-490.0,0.00016438,2]
[366314457,1750183851852,-280.628356,0.00016438,2]
[366314459,1750183851863,-302.29780629,0.00016438,2]
[366314461,1750183851874,-490.0,0.00016438,2]
[366314463,1750183851885,-490.0,0.00016438,2]
[366314465,1750183851895,-280.628356,0.00016438,2]
[366314467,1750183851908,-280.628356,0.00016438,2]
[366314469,1750183851918,-490.0,0.00016438,2]
[366314472,1750183851929,-280.628356,0.00016438,2]
[366314473,1750183851938,-490.0,0.00016438,2]
[366314476,1750183851949,-280.628356,0.00016438,2]
[366314477,1750183851959,-490.0,0.00016438,2]
[366314479,1750183851969,-639.46,0.00016438,2]
[366314482,1750183851979,-280.628356,0.00016438,2]
[366314484,1750183851990,-280.628356,0.00016438,2]
[366314486,1750183852000,-490.0,0.00016438,2]
[366314488,1750183852010,-729.0,0.00016438,2]
[366314490,1750183852020,-490.0,0.00016438,2]
[366314492,1750183852030,-186.724308,0.00016438,2]
[366314494,1750183852043,-490.0,0.00016438,2]
[366314496,1750183852054,-490.0,0.00016438,2]
[366314498,1750183852063,-186.724308,0.00016438,2]
[366314500,1750183852074,-2551.92,0.00016438,2]
[366314502,1750183852084,-186.724308,0.00016438,2]
[366314503,1750183852094,-4585.78,0.00016438,2]
[366314506,1750183852104,-490.0,0.00016438,2]
[366314508,1750183852113,-186.724308,0.00016438,2]
[366314509,1750183852124,-186.724308,0.00016438,2]
[366314511,1750183852134,-640.66,0.00016438,2]
[366314514,1750183852145,-490.0,0.00016438,2]
[366314516,1750183852154,-186.724308,0.00016438,2]
[366314518,1750183852165,-490.0,0.00016438,2]
[366314520,1750183852175,-2567.93,0.00016438,2]
[366314522,1750183852184,-522.16,0.00016438,2]
[366314524,1750183852194,-490.0,0.00016438,2]
[366314526,1750183852204,-186.724308,0.00016438,2]
[366314528,1750183852213,-490.0,0.00016438,2]
[366314530,1750183852223,-490.0,0.00016438,2]
[366314532,1750183852232,-186.724308,0.00016438,2]
[366314533,1750183852241,-186.724308,0.00016438,2]
[366314535,1750183852251,-490.0,0.00016438,2]
[366314538,1750183852262,-2642.67,0.00016438,2]
[366314540,1750183852272,-490.0,0.00016438,2]
[366314542,1750183852281,-186.724308,0.00016438,2]
[366314544,1750183852291,-833.56,0.00016438,2]
[366314546,1750183852300,-1445.03,0.00016438,2]
[366314548,1750183852309,-186.724308,0.00016438,2]
[366314550,1750183852319,-490.0,0.00016438,2]
[366314552,1750183852329,-186.724308,0.00016438,2]
[366314554,1750183852340,-2494.86,0.00016438,2]
[366314556,1750183852349,-490.0,0.00016438,2]
[366314558,1750183852359,-679.03,0.00016438,2]
[366314560,1750183852369,-490.0,0.00016438,2]
[366314562,1750183852379,-490.0,0.00016438,2]
[366314564,1750183852388,-490.0,0.00016438,2]
[366314566,1750183852397,-1509.1,0.00016438,2]
[366314567,1750183852407,-672.56,0.00016438,2]
[366314569,1750183852416,-490.0,0.00016438,2]
[366314571,1750183852426,-150.0,0.00016438,2]
[366314573,1750183852435,-948.71,0.00016438,2]
[366314575,1750183852444,-1968.76,0.00016438,2]
[366314577,1750183852454,-490.0,0.00016438,2]
[366314579,1750183852463,-1666.8,0.00016438,2]
[366314581,1750183852473,-490.0,0.00016438,2]
[366314583,1750183852483,-1401.62,0.00016438,2]
[366314585,1750183852492,-421.80870919,0.00016438,2]
[366314587,1750183852501,-1244.63,0.00016438,2]
[366314589,1750183852511,-490.0,0.00016438,2]
[366314591,1750183852520,-490.0,0.00016438,2]
[366314593,1750183852530,-490.0,0.00016438,2]
[366314595,1750183852540,-490.0,0.00016438,2]
[366314597,1750183852550,-7585.73,0.00016438,2]
[366314599,1750183852559,-490.0,0.00016438,2]
[366314601,1750183852568,-490.0,0.00016438,2]
[366314603,1750183852578,-490.0,0.00016438,2]
[366314606,1750183852589,-490.0,0.00016438,2]
[366314608,1750183852598,-1128.93,0.00016438,2]
[366314609,1750183852608,-778.28,0.00016438,2]
[366314611,1750183852618,-490.0,0.00016438,2]
[366314613,1750183852627,-490.0,0.00016438,2]
[366314615,1750183852637,-490.0,0.00016438,2]
[366314617,1750183852646,-9087.51,0.00016438,2]
[366314619,1750183852657,-3274.38,0.00016438,2]
[366314621,1750183852667,-777.8,0.00016438,2]
[366314623,1750183852678,-1292.69,0.00016438,2]
[366314625,1750183852687,-490.0,0.00016438,2]
[366314627,1750183852698,-583.14,0.00016438,2]
[366314630,1750183852707,-1313.67,0.00016438,2]
[366314631,1750183852717,-1517.39,0.00016438,2]
[366314634,1750183852729,-490.0,0.00016438,2]
[366314636,1750183852739,-702.57,0.00016438,2]
[366314638,1750183852749,-490.0,0.00016438,2]
[366314640,1750183852758,-274.83355521,0.00016438,2]
[366314642,1750183852767,-490.0,0.00016438,2]
[366314644,1750183852777,-490.0,0.00016438,2]
[366314645,1750183852786,-204.48871146,0.00016438,2]
[366314647,1750183852796,-1261.93,0.00016438,2]
[366314649,1750183852805,-151.0,0.00016438,2]
[366314652,1750183852815,-1277.12,0.00016438,2]
[366314653,1750183852825,-151.0,0.00016438,2]
[366314655,1750183852836,-1005.78,0.00016438,2]
[366314657,1750183852847,-151.0,0.00016438,2]
[366314660,1750183852857,-733.05,0.00016438,2]
[366314662,1750183852867,-151.0,0.00016438,2]
[366314664,1750183852875,-151.0,0.00016438,2]
[366314665,1750183852885,-22857.29,0.00016438,2]
[366314667,1750183852895,-1853.39,0.00016438,2]
[366314670,1750183852906,-151.0,0.00016438,2]
[366314672,1750183852917,-490.0,0.00016438,2]
[366314675,1750183852935,-490.0,0.00016438,2]
[366314677,1750183852949,-1131.47,0.00016438,2]
[366314679,1750183852962,-490.0,0.00016438,2]
[366314682,1750183852977,-490.0,0.00016438,2]
[366314684,1750183852992,-1188.36,0.00016438,2]
[366314687,1750183853007,-490.0,0.00016438,2]
[366314689,1750183853023,-1132.66,0.00016438,2]
[366314692,1750183853037,-223.571309,0.00016438,2]
[366314694,1750183853055,-490.0,0.00016438,2]
[366314696,1750183853071,-750.55,0.00016438,2]
[366314699,1750183853087,-490.0,0.00016438,2]
[366314701,1750183853103,-490.0,0.00016438,2]
[366314704,1750183853119,-2638.86,0.00016438,2]
[366314706,1750183853137,-4889.44,0.00016438,2]
[366314709,1750183853157,-428.40761042,0.00016438,2]
[366314711,1750183853171,-769.55,0.00016438,2]
[366314713,1750183853185,-490.0,0.00016438,2]
[366314716,1750183853199,-932.65,0.00016438,2]
[366314718,1750183853214,-4717.64,0.00016438,2]
[366314721,1750183853229,-490.0,0.00016438,2]
[366314723,1750183853243,-490.0,0.00016438,2]
[366314725,1750183853256,-1184.42,0.00016438,2]
[366314728,1750183853269,-490.0,0.00016438,2]
[366314730,1750183853282,-490.0,0.00016438,2]
[366314733,1750183853299,-1144.91,0.00016438,2]
[366314735,1750183853311,-2687.54,0.00016438,2]
[366314737,1750183853323,-490.0,0.00016438,2]
[366314739,1750183853337,-1102.431131,0.00016438,2]
[366314742,1750183853354,-1102.431131,0.00016438,2]
[366314744,1750183853366,-491.51568208,0.00016438,2]
[366314746,1750183853378,-1102.431131,0.00016438,2]
[366314749,1750183853391,-1102.431131,0.00016438,2]
[366314751,1750183853403,-1102.431131,0.00016438,2]
[366314753,1750183853420,-1102.431131,0.00016438,2]
[366314756,1750183853433,-579.10620846,0.00016438,2]
[366314758,1750183853447,-490.0,0.00016438,2]
[366314760,1750183853460,-1289.13,0.00016438,2]
[366314762,1750183853473,-420.0,0.00016438,2]
[366314765,1750183853486,-490.0,0.00016438,2]
[366314767,1750183853500,-490.0,0.00016438,2]
[366314769,1750183853513,-666.08,0.00016438,2]
[366314772,1750183853525,-1089.84,0.00016438,2]
[366314774,1750183853538,-1102.431131,0.00016438,2]
[366314776,1750183853551,-1511.92,0.00016438,2]
[366314778,1750183853563,-1102.431131,0.00016438,2]
[366314781,1750183853575,-490.0,0.00016438,2]
[366314783,1750183853588,-1679.75,0.00016438,2]
[366314785,1750183853600,-1102.431131,0.00016438,2]
[366314787,1750183853613,-5637.55,0.00016438,2]
[366314790,1750183853625,-490.0,0.00016438,2]
[366314791,1750183853638,-463.47920711,0.00016438,2]
[366314792,1750183853651,-3408.95,0.00016438,2]
[366314793,1750183853666,-4070.1,0.00016438,2]
[366314794,1750183853679,-565.99232306,0.00016438,2]
[366314795,1750183853692,-1102.431131,0.00016438,2]